[Event "European Online Club-ch-B 2021"]
[Site "Online"]
[Date "2021.03.27"]
[Round "1.3"]
[White "Sasikiran, Krishnan"]
[Black "Lecky, Juraj"]
[Result "1-0"]
[ECO "B90"]
[WhiteElo "2647"]
[BlackElo "2070"]
[Annotator "ChessBase"]
[PlyCount "72"]
[EventDate "2021.03.27"]
[EventType "team-tourn"]
[EventCountry "NET"]
[SourceTitle "playchess.com"]
[Source "ChessBase"]
[SourceQuality "1"]
[TimeControl "900+5"]

1. e4 {[%emt 0:00:00]} c5 {[%emt 0:00:03]} 2. Nf3 {[%emt 0:00:07]} d6 {[%emt 0:00:03]} 3. d4 {[%emt 0:00:06]} cxd4 {[%emt 0:00:02]} 4. Nxd4 {[%emt 0:00:03]} Nf6 {[%emt 0:00:02]} 5. Nc3 {[%emt 0:00:01]} a6 {[%emt 0:00:01]} 6. Be3 {[%emt 0:00:02]} e5 {[%emt 0:00:03]} 7. Nb3 {[%emt 0:00:02]} Be6 {[%emt 0:00:02]} 8. f3 {[%emt 0:00:10]} h5 {[%emt 0:00:02]} 9. Nd5 {[%emt 0:00:07]} Bxd5 {[%emt 0:00:42]} 10. exd5 {[%emt 0:00:02]} Nbd7 {[%emt 0:00:34]} 11. Qd2 {[%emt 0:00:03]} Rc8 {[%emt 0:01:20]} 12. c4 {[%emt 0:02:28]} Be7 {[%emt 0:03:07]} 13. Be2 {[%emt 0:02:28]} O-O {[%emt 0:00:22]} 14. Na5 {[%emt 0:01:16]} Qc7 {[%emt 0:00:28]} 15. O-O {[%emt 0:00:50]} Rfe8 {[%emt 0:01:59]} 16. b4 {[%emt 0:01:30]} Bf8 {[%emt 0:01:19]} 17. Rac1 {[%emt 0:01:36]} b6 {[%emt 0:05:38]} 18. Nc6 {[%emt 0:02:42]} Nb8 {[%emt 0:00:09]} 19. b5 {[%emt 0:00:21]} a5 {[%emt 0:00:14]} 20. h3 {[%emt 0:00:03]} Nfd7 {[%emt 0:00:11]} 21. f4 {[%emt 0:00:19]} exf4 {[%emt 0:00:07]} 22. Rxf4 {[%emt 0:00:07]} Nxc6 {[%emt 0:00:15]} 23. bxc6 {[%emt 0:00:27]} Ne5 {[%emt 0:00:03]} 24. Rb1 {[%emt 0:00:30]} Rb8 {[%emt 0:00:04]} 25. Bxh5 {[%emt 0:00:36]} g6 {[%emt 0:00:08]} 26. Be2 {[%emt 0:00:02]} Bg7 {[%emt 0:00:01]} 27. Rf2 {[%emt 0:00:12]} Re7 {[%emt 0:00:10]} 28. Bg5 {[%emt 0:00:03]} Ree8 {[%emt 0:00:02]} 29. Rbf1 {[%emt 0:00:15]} Rf8 {[%emt 0:00:07]} 30. h4 {[%emt 0:00:08]} Rbe8 {[%emt 0:00:01]} 31. h5 {[%emt 0:00:25]} gxh5 {[%emt 0:00:07]} 32. Bxh5 {[%emt 0:00:07]} Ng6 {[%emt 0:00:01]} 33. Qd3 {[%emt 0:00:05]} Re5 {[%emt 0:00:11]} 34. Bxg6 {[%emt 0:00:07]} Rxg5 {[%emt 0:00:01]} 35. Rxf7 {[%emt 0:00:09]} Rxf7 {[%emt 0:00:08]} 36. Bxf7+ {[%emt 0:00:03]} Kh8 {[%emt 0:00:04]} 1-0

[Event "European Online Club-ch-B 2021"]
[Site "Online"]
[Date "2021.03.27"]
[Round "1.6"]
[White "Mathieu, Phileas"]
[Black "Engel, Luis"]
[Result "0-1"]
[ECO "B53"]
[WhiteElo "2240"]
[BlackElo "2553"]
[Annotator "ChessBase"]
[PlyCount "62"]
[EventDate "2021.03.27"]
[EventType "team-tourn"]
[EventCountry "NET"]
[SourceTitle "playchess.com"]
[Source "ChessBase"]
[SourceQuality "1"]
[TimeControl "900+5"]

1. e4 {[%emt 0:00:00]} c5 {[%emt 0:00:02]} 2. Nf3 {[%emt 0:00:04]} d6 {[%emt 0:00:02]} 3. d4 {[%emt 0:00:02]} cxd4 {[%emt 0:00:01]} 4. Qxd4 {[%emt 0:00:02]} Nf6 {[%emt 0:00:06]} 5. c4 {[%emt 0:00:06]} Nc6 {[%emt 0:00:03]} 6. Qe3 {[%emt 0:00:03]} g6 {[%emt 0:00:19]} 7. h3 {[%emt 0:00:09]} Bg7 {[%emt 0:00:02]} 8. Be2 {[%emt 0:00:02]} O-O {[%emt 0:00:16]} 9. O-O {[%emt 0:00:05]} Be6 {[%emt 0:01:02]} 10. Nc3 {[%emt 0:00:13]} Rc8 {[%emt 0:00:24]} 11. Rb1 {[%emt 0:00:54]} a6 {[%emt 0:01:04]} 12. Rd1 {[%emt 0:00:31]} Qa5 {[%emt 0:00:35]} 13. Bd2 {[%emt 0:02:20]} Qc5 {[%emt 0:00:48]} 14. b3 {[%emt 0:01:20]} Nd7 {[%emt 0:01:33]} 15. Nd5 {[%emt 0:00:53]} Bxd5 {[%emt 0:00:43]} 16. exd5 {[%emt 0:00:26]} Qxe3 {[%emt 0:00:41]} 17. Bxe3 {[%emt 0:00:04]} Nb4 {[%emt 0:00:54]} 18. a3 {[%emt 0:01:45]} Na2 {[%emt 0:01:03]} 19. Bd4 {[%emt 0:00:34]} Nc3 {[%emt 0:02:22]} 20. Bxc3 {[%emt 0:00:36]} Bxc3 {[%emt 0:00:00]} 21. b4 {[%emt 0:00:20]} Rc7 {[%emt 0:00:53]} 22. Rdc1 {[%emt 0:03:10]} Bf6 {[%emt 0:00:04]} 23. g3 {[%emt 0:01:17]} Rfc8 {[%emt 0:00:16]} 24. Nd2 {[%emt 0:00:16]} b5 {[%emt 0:00:45]} 25. Nb3 {[%emt 0:00:50]} bxc4 {[%emt 0:00:21]} 26. Na5 {[%emt 0:00:02]} Nb6 {[%emt 0:00:17]} 27. b5 {[%emt 0:00:08]} Nxd5 {[%emt 0:00:18]} 28. b6 {[%emt 0:00:38]} Rc5 {[%emt 0:00:24]} 29. b7 {[%emt 0:00:21]} Rb8 {[%emt 0:00:02]} 30. Nxc4 {[%emt 0:00:12]} Nc3 {[%emt 0:00:12]} 31. Rb2 {[%emt 0:00:05]} Rxb7 {[%emt 0:00:14]} 0-1

[Event "European Online Club-ch-B 2021"]
[Site "Online"]
[Date "2021.03.27"]
[Round "1.7"]
[White "Heinemann, Thies"]
[Black "Thomas, Anysia"]
[Result "1-0"]
[ECO "B30"]
[WhiteElo "2502"]
[BlackElo "2164"]
[Annotator "ChessBase"]
[PlyCount "107"]
[EventDate "2021.03.27"]
[EventType "team-tourn"]
[EventCountry "NET"]
[SourceTitle "playchess.com"]
[Source "ChessBase"]
[SourceQuality "1"]
[TimeControl "900+5"]

1. e4 {[%emt 0:00:00]} c5 {[%emt 0:00:04]} 2. Nf3 {[%emt 0:00:05]} g6 {[%emt 0:00:01]} 3. Bc4 {[%emt 0:00:10]} Nc6 {[%emt 0:00:18]} 4. c3 {[%emt 0:00:12]} e6 {[%emt 0:01:33]} 5. d4 {[%emt 0:00:14]} cxd4 {[%emt 0:00:03]} 6. Nxd4 {[%emt 0:00:07]} a6 {[%emt 0:03:10]} 7. Nxc6 {[%emt 0:01:03]} bxc6 {[%emt 0:00:22]} 8. e5 {[%emt 0:00:13]} Bg7 {[%emt 0:00:26]} 9. Qe2 {[%emt 0:00:25]} d5 {[%emt 0:00:43]} 10. exd6 {[%emt 0:00:10]} Qxd6 {[%emt 0:00:02]} 11. O-O {[%emt 0:00:13]} Ne7 {[%emt 0:00:03]} 12. Nd2 {[%emt 0:00:42]} O-O {[%emt 0:00:48]} 13. Ne4 {[%emt 0:00:11]} Qc7 {[%emt 0:00:14]} 14. Be3 {[%emt 0:00:24]} Nd5 {[%emt 0:01:15]} 15. Bc5 {[%emt 0:00:18]} Rd8 {[%emt 0:00:11]} 16. Rad1 {[%emt 0:01:05]} e5 {[%emt 0:00:53]} 17. Rfe1 {[%emt 0:01:56]} Be6 {[%emt 0:00:11]} 18. Qf1 {[%emt 0:00:50]} h6 {[%emt 0:00:57]} 19. Rd2 {[%emt 0:01:13]} f5 {[%emt 0:00:45]} 20. Ng3 {[%emt 0:00:17]} Nf4 {[%emt 0:01:16]} 21. Red1 {[%emt 0:00:08]} Bd5 {[%emt 0:00:22]} 22. f3 {[%emt 0:00:33]} Kh7 {[%emt 0:00:07]} 23. Be3 {[%emt 0:01:12]} Ne6 {[%emt 0:01:11]} 24. Bf2 {[%emt 0:00:43]} Nf4 {[%emt 0:00:21]} 25. Bxd5 {[%emt 0:01:53]} cxd5 {[%emt 0:00:03]} 26. Ne2 {[%emt 0:00:03]} Nxe2+ {[%emt 0:00:46]} 27. Qxe2 {[%emt 0:00:03]} Qc6 {[%emt 0:00:21]} 28. f4 {[%emt 0:00:39]} e4 {[%emt 0:00:17]} 29. Bd4 {[%emt 0:00:03]} Rd7 {[%emt 0:00:07]} 30. Qe3 {[%emt 0:00:20]} Rad8 {[%emt 0:00:06]} 31. Bxg7 {[%emt 0:00:03]} Rxg7 {[%emt 0:00:02]} 32. Rd4 {[%emt 0:00:03]} Rgd7 {[%emt 0:00:05]} 33. h3 {[%emt 0:00:03]} Qc7 {[%emt 0:00:10]} 34. R1d2 {[%emt 0:00:05]} Qa5 {[%emt 0:00:06]} 35. b3 {[%emt 0:00:18]} Qc7 {[%emt 0:00:05]} 36. Kh1 {[%emt 0:00:15]} Kg7 {[%emt 0:00:05]} 37. g4 {[%emt 0:00:36]} fxg4 {[%emt 0:00:11]} 38. hxg4 {[%emt 0:00:02]} Qc6 {[%emt 0:00:02]} 39. f5 {[%emt 0:00:15]} Qf6 {[%emt 0:00:07]} 40. fxg6 {[%emt 0:00:13]} Qxg6 {[%emt 0:00:02]} 41. c4 {[%emt 0:00:12]} Rf7 {[%emt 0:00:14]} 42. Rxd5 {[%emt 0:00:35]} Rxd5 {[%emt 0:00:08]} 43. cxd5 {[%emt 0:00:02]} Rf1+ {[%emt 0:00:07]} 44. Kh2 {[%emt 0:00:05]} Rf3 {[%emt 0:00:09]} 45. Qa7+ {[%emt 0:00:04]} Kg8 {[%emt 0:00:06]} 46. Qb8+ {[%emt 0:00:07]} Kg7 {[%emt 0:00:08]} 47. Qe5+ {[%emt 0:00:02]} Kh7 {[%emt 0:00:03]} 48. Rc2 {[%emt 0:00:04]} Rf7 {[%emt 0:00:08]} 49. Rc7 {[%emt 0:00:08]} Kg8 {[%emt 0:00:06]} 50. Qe8+ {[%emt 0:00:23]} Kg7 {[%emt 0:00:05]} 51. Rxf7+ {[%emt 0:00:03]} Qxf7 {[%emt 0:00:03]} 52. Qxf7+ {[%emt 0:00:01]} Kxf7 {[%emt 0:00:02]} 53. Kg3 {[%emt 0:00:02]} Ke7 {[%emt 0:00:04]} 54. Kf4 {[%emt 0:00:01]} 1-0

[Event "European Online Club-ch-B 2021"]
[Site "Online"]
[Date "2021.03.27"]
[Round "1.8"]
[White "Frantz, Nicolas"]
[Black "Kramer, Julian"]
[Result "1/2-1/2"]
[ECO "B53"]
[WhiteElo "2140"]
[BlackElo "2419"]
[Annotator "NA"]
[PlyCount "78"]
[EventDate "2021.03.27"]
[EventType "team-tourn"]
[EventCountry "NET"]
[SourceTitle "playchess.com"]
[Source "ChessBase"]
[SourceQuality "1"]
[TimeControl "900+5"]

1. e4 {[%emt 0:00:00]} c5 {[%emt 0:00:03]} 2. Nf3 {[%emt 0:00:03]} d6 {[%emt 0:00:02]} 3. d4 {[%emt 0:00:02]} cxd4 {[%emt 0:00:00]} 4. Qxd4 {[%emt 0:00:02]} Nc6 {[%emt 0:00:02]} 5. Bb5 {[%emt 0:00:02]} a6 {[%emt 0:00:01]} 6. Bxc6+ {[%emt 0:00:03]} bxc6 {[%emt 0:00:00]} 7. c4 {[%emt 0:00:03]} e5 {[%emt 0:00:03]} 8. Qd3 {[%emt 0:00:02]} Ne7 {[%emt 0:00:02]} 9. c5 {[%emt 0:01:59]} Qa5+ {[%emt 0:00:54]} 10. Nc3 {[%emt 0:00:04]} Qxc5 {[%emt 0:00:52]} 11. O-O {[%emt 0:00:40]} Ng6 {[%emt 0:00:34]} 12. Be3 {[%emt 0:00:27]} Qb4 {[%emt 0:01:08]} 13. a3 {[%emt 0:00:34]} Qb7 {[%emt 0:00:21]} 14. b4 {[%emt 0:00:18]} Be7 {[%emt 0:00:21]} 15. Rac1 {[%emt 0:00:29]} O-O {[%emt 0:00:17]} 16. Na4 {[%emt 0:02:46]} Qb5 {[%emt 0:03:52]} 17. Qc2 {[%emt 0:00:07]} Rb8 {[%emt 0:01:37]} 18. Rfd1 {[%emt 0:01:41]} Bd7 {[%emt 0:00:25]} 19. Nc3 {[%emt 0:04:45]} Qb7 {[%emt 0:00:07]} 20. h3 {[%emt 0:01:01]} h6 {[%emt 0:00:59]} 21. Na4 {[%emt 0:00:28]} Kh7 {[%emt 0:03:08]} 22. Nb6 {[%emt 0:00:07]} Be8 {[%emt 0:00:02]} 23. Nc4 {[%emt 0:00:03]} Qc7 {[%emt 0:00:24]} 24. Na5 {[%emt 0:00:47]} c5 {[%emt 0:00:02]} 25. Rd5 {[%emt 0:00:13]} Qd8 {[%emt 0:00:20]} 26. Nc4 {[%emt 0:00:11]} Bc6 {[%emt 0:00:04]} 27. Rdd1 {[%emt 0:00:05]} cxb4 {[%emt 0:00:08]} 28. Ncxe5 {[%emt 0:00:03]} Ba8 {[%emt 0:00:21]} 29. Nxg6 {[%emt 0:00:02]} fxg6 {[%emt 0:00:01]} 30. axb4 {[%emt 0:00:01]} Rxb4 {[%emt 0:00:04]} 31. Nd4 {[%emt 0:00:01]} Qd7 {[%emt 0:00:07]} 32. Qc7 {[%emt 0:00:03]} Rb7 {[%emt 0:00:13]} 33. Qxd7 {[%emt 0:00:08]} Rxd7 {[%emt 0:00:00]} 34. Ne6 {[%emt 0:00:07]} Rb8 {[%emt 0:00:12]} 35. e5 {[%emt 0:00:02]} a5 {[%emt 0:00:23]} 36. Nc5 {[%emt 0:00:04]} Rdd8 {[%emt 0:00:03]} 37. Ne6 {[%emt 0:00:01]} Rd7 {[%emt 0:00:23]} 38. Nc5 {[%emt 0:00:02]} Rdd8 {[%emt 0:00:04]} 39. Ne6 {[%emt 0:00:11]} Rd7 {[%emt 0:00:22]} 1/2-1/2

[Event "European Online Club-ch-B 2021"]
[Site "Online"]
[Date "2021.03.27"]
[Round "1.9"]
[White "Edouard, Romain"]
[Black "Sorensen, Hampus"]
[Result "1-0"]
[ECO "D43"]
[WhiteElo "2614"]
[BlackElo "2395"]
[Annotator "ChessBase"]
[PlyCount "157"]
[EventDate "2021.03.27"]
[EventType "team-tourn"]
[EventCountry "NET"]
[SourceTitle "playchess.com"]
[Source "ChessBase"]
[SourceQuality "1"]
[TimeControl "900+5"]

1. d4 {[%emt 0:00:00]} d5 {[%emt 0:00:04]} 2. c4 {[%emt 0:00:03]} c6 {[%emt 0:00:05]} 3. Nf3 {[%emt 0:00:02]} Nf6 {[%emt 0:00:03]} 4. Nc3 {[%emt 0:00:02]} e6 {[%emt 0:00:02]} 5. Bg5 {[%emt 0:00:06]} h6 {[%emt 0:00:03]} 6. Bxf6 {[%emt 0:00:09]} Qxf6 {[%emt 0:00:03]} 7. e3 {[%emt 0:00:01]} Nd7 {[%emt 0:00:08]} 8. Bd3 {[%emt 0:00:12]} dxc4 {[%emt 0:00:13]} 9. Bxc4 {[%emt 0:00:15]} g6 {[%emt 0:00:13]} 10. e4 {[%emt 0:00:09]} e5 {[%emt 0:00:50]} 11. dxe5 {[%emt 0:00:14]} Nxe5 {[%emt 0:00:04]} 12. Nxe5 {[%emt 0:00:01]} Qxe5 {[%emt 0:00:01]} 13. Qb3 {[%emt 0:00:01]} Qe7 {[%emt 0:01:04]} 14. O-O {[%emt 0:00:48]} Bg7 {[%emt 0:00:08]} 15. f4 {[%emt 0:00:02]} O-O {[%emt 0:00:40]} 16. f5 {[%emt 0:00:05]} g5 {[%emt 0:01:17]} 17. Rae1 {[%emt 0:00:21]} Be5 {[%emt 0:00:14]} 18. Nd1 {[%emt 0:00:27]} b5 {[%emt 0:00:27]} 19. Be2 {[%emt 0:00:04]} Kg7 {[%emt 0:01:15]} 20. Kh1 {[%emt 0:00:20]} Bd7 {[%emt 0:00:20]} 21. Qh3 {[%emt 0:00:09]} f6 {[%emt 0:00:18]} 22. Nf2 {[%emt 0:00:25]} Be8 {[%emt 0:00:13]} 23. Bh5 {[%emt 0:00:05]} Bxh5 {[%emt 0:00:13]} 24. Qxh5 {[%emt 0:00:03]} Qf7 {[%emt 0:00:02]} 25. Qh3 {[%emt 0:00:05]} Rfe8 {[%emt 0:00:17]} 26. Rd1 {[%emt 0:00:21]} h5 {[%emt 0:00:24]} 27. Nd3 {[%emt 0:00:08]} Bd6 {[%emt 0:01:19]} 28. e5 {[%emt 0:00:15]} Rxe5 {[%emt 0:02:11]} 29. Nxe5 {[%emt 0:00:03]} Bxe5 {[%emt 0:00:01]} 30. Rd2 {[%emt 0:00:15]} Re8 {[%emt 0:00:38]} 31. Rfd1 {[%emt 0:00:19]} Re7 {[%emt 0:00:27]} 32. b3 {[%emt 0:00:24]} c5 {[%emt 0:00:20]} 33. Rd8 {[%emt 0:00:17]} Bd4 {[%emt 0:00:11]} 34. Qf3 {[%emt 0:00:11]} b4 {[%emt 0:01:19]} 35. Qc6 {[%emt 0:00:50]} h4 {[%emt 0:00:27]} 36. Rf1 {[%emt 0:00:23]} Rc7 {[%emt 0:00:28]} 37. Qb5 {[%emt 0:00:48]} Rb7 {[%emt 0:00:11]} 38. Qa6 {[%emt 0:00:11]} Re7 {[%emt 0:00:41]} 39. h3 {[%emt 0:00:17]} Qh5 {[%emt 0:00:30]} 40. Qc8 {[%emt 0:01:05]} Qf7 {[%emt 0:00:02]} 41. Qa8 {[%emt 0:00:29]} Kh7 {[%emt 0:00:13]} 42. Rh8+ {[%emt 0:00:23]} Kg7 {[%emt 0:00:02]} 43. Rb8 {[%emt 0:00:02]} Be5 {[%emt 0:00:11]} 44. Rc8 {[%emt 0:00:09]} Bd4 {[%emt 0:00:02]} 45. Qc6 {[%emt 0:00:09]} Qh5 {[%emt 0:00:09]} 46. Rc7 {[%emt 0:01:05]} Qf7 {[%emt 0:00:03]} 47. Rxe7 {[%emt 0:00:21]} Qxe7 {[%emt 0:00:01]} 48. Qf3 {[%emt 0:00:02]} Kh6 {[%emt 0:00:08]} 49. Qd1 {[%emt 0:00:46]} Qe5 {[%emt 0:00:16]} 50. Qf3 {[%emt 0:00:39]} Qe7 {[%emt 0:00:19]} 51. g3 {[%emt 0:00:19]} hxg3 {[%emt 0:00:04]} 52. Qxg3 {[%emt 0:00:02]} Qe4+ {[%emt 0:00:05]} 53. Qf3 {[%emt 0:00:02]} Qe5 {[%emt 0:00:12]} 54. Qa8 {[%emt 0:00:14]} Kg7 {[%emt 0:00:06]} 55. Qxa7+ {[%emt 0:00:02]} Kh6 {[%emt 0:00:00]} 56. Qa8 {[%emt 0:00:02]} Kg7 {[%emt 0:00:03]} 57. Qf3 {[%emt 0:00:30]} Kh6 {[%emt 0:00:01]} 58. Kg2 {[%emt 0:00:13]} Bc3 {[%emt 0:00:20]} 59. h4 {[%emt 0:00:07]} gxh4 {[%emt 0:00:02]} 60. Qf4+ {[%emt 0:00:01]} Qxf4 {[%emt 0:00:02]} 61. Rxf4 {[%emt 0:00:02]} Kg5 {[%emt 0:00:02]} 62. Kf3 {[%emt 0:00:14]} Be5 {[%emt 0:00:03]} 63. Rg4+ {[%emt 0:00:01]} Kxf5 {[%emt 0:00:07]} 64. Rxh4 {[%emt 0:00:02]} Ke6 {[%emt 0:00:04]} 65. Ke4 {[%emt 0:00:02]} f5+ {[%emt 0:00:02]} 66. Kd3 {[%emt 0:00:02]} Kf6 {[%emt 0:00:10]} 67. Rh6+ {[%emt 0:00:13]} Kg5 {[%emt 0:00:01]} 68. Rc6 {[%emt 0:00:02]} Bd4 {[%emt 0:00:02]} 69. Ra6 {[%emt 0:00:03]} Kg4 {[%emt 0:00:07]} 70. a4 {[%emt 0:00:04]} bxa3 {[%emt 0:00:02]} 71. b4 {[%emt 0:00:14]} Bf2 {[%emt 0:00:22]} 72. b5 {[%emt 0:00:04]} f4 {[%emt 0:00:03]} 73. b6 {[%emt 0:00:16]} c4+ {[%emt 0:00:05]} 74. Kxc4 {[%emt 0:00:01]} Bxb6 {[%emt 0:00:05]} 75. Rxb6 {[%emt 0:00:01]} Kf3 {[%emt 0:00:05]} 76. Kd3 {[%emt 0:00:07]} Kf2 {[%emt 0:00:02]} 77. Ke4 {[%emt 0:00:16]} f3 {[%emt 0:00:07]} 78. Rb3 {[%emt 0:00:02]} a2 {[%emt 0:00:04]} 79. Rxf3+ {[%emt 0:00:02]} 1-0

[Event "European Online Club-ch-B 2021"]
[Site "Online"]
[Date "2021.03.27"]
[Round "1.10"]
[White "Agrest, Inna"]
[Black "Sokolov, Andrei"]
[Result "0-1"]
[ECO "B80"]
[WhiteElo "2285"]
[BlackElo "2516"]
[Annotator "ChessBase"]
[PlyCount "92"]
[EventDate "2021.03.27"]
[EventType "team-tourn"]
[EventCountry "NET"]
[SourceTitle "playchess.com"]
[Source "ChessBase"]
[SourceQuality "1"]
[TimeControl "900+5"]

1. e4 {[%emt 0:00:04]} c5 {[%emt 0:04:24]} 2. Nf3 {[%emt 0:00:02]} e6 {[%emt 0:00:08]} 3. d4 {[%emt 0:00:02]} cxd4 {[%emt 0:00:02]} 4. Nxd4 {[%emt 0:00:00]} Nc6 {[%emt 0:00:05]} 5. Nc3 {[%emt 0:00:01]} d6 {[%emt 0:00:05]} 6. Be3 {[%emt 0:00:14]} Nf6 {[%emt 0:00:26]} 7. f3 {[%emt 0:00:50]} d5 {[%emt 0:00:29]} 8. exd5 {[%emt 0:00:37]} Nxd5 {[%emt 0:00:15]} 9. Nxd5 {[%emt 0:00:02]} Qxd5 {[%emt 0:01:43]} 10. Qd2 {[%emt 0:00:32]} Nxd4 {[%emt 0:01:29]} 11. Qxd4 {[%emt 0:00:20]} Qxd4 {[%emt 0:01:16]} 12. Bxd4 {[%emt 0:00:00]} Bd7 {[%emt 0:00:10]} 13. O-O-O {[%emt 0:00:07]} h5 {[%emt 0:00:04]} 14. h4 {[%emt 0:01:05]} Bc6 {[%emt 0:00:08]} 15. a3 {[%emt 0:02:50]} a6 {[%emt 0:00:09]} 16. Bc3 {[%emt 0:00:37]} Bd5 {[%emt 0:00:34]} 17. Bd3 {[%emt 0:01:04]} Rc8 {[%emt 0:01:07]} 18. Rhe1 {[%emt 0:01:56]} Bxa3 {[%emt 0:01:04]} 19. Bxg7 {[%emt 0:00:15]} Rg8 {[%emt 0:00:04]} 20. Bf6 {[%emt 0:00:52]} Bb4 {[%emt 0:01:06]} 21. Re2 {[%emt 0:00:54]} Kd7 {[%emt 0:00:23]} 22. Kb1 {[%emt 0:01:15]} Be7 {[%emt 0:00:28]} 23. Be5 {[%emt 0:00:50]} f6 {[%emt 0:00:26]} 24. Bh2 {[%emt 0:00:29]} Ke8 {[%emt 0:00:05]} 25. Bf5 {[%emt 0:01:27]} Rc6 {[%emt 0:00:34]} 26. Rxd5 {[%emt 0:00:21]} exd5 {[%emt 0:00:03]} 27. Be6 {[%emt 0:00:01]} Rxe6 {[%emt 0:00:06]} 28. Rxe6 {[%emt 0:00:00]} Kd7 {[%emt 0:00:19]} 29. Re2 {[%emt 0:00:03]} f5 {[%emt 0:00:05]} 30. Be5 {[%emt 0:00:24]} Bxh4 {[%emt 0:00:05]} 31. Bd4 {[%emt 0:00:03]} Re8 {[%emt 0:00:04]} 32. Rd2 {[%emt 0:00:02]} Bg5 {[%emt 0:00:03]} 33. Rd1 {[%emt 0:00:02]} Re2 {[%emt 0:00:03]} 34. Rh1 {[%emt 0:00:16]} h4 {[%emt 0:00:04]} 35. f4 {[%emt 0:00:05]} Be7 {[%emt 0:00:02]} 36. Rg1 {[%emt 0:00:06]} Re4 {[%emt 0:00:04]} 37. Be5 {[%emt 0:00:03]} Bc5 {[%emt 0:00:02]} 38. Rh1 {[%emt 0:00:03]} Bf2 {[%emt 0:00:03]} 39. Ka2 {[%emt 0:00:10]} Bg3 {[%emt 0:00:02]} 40. Rd1 {[%emt 0:00:02]} Kc6 {[%emt 0:00:04]} 41. Rd3 {[%emt 0:00:02]} Bxf4 {[%emt 0:00:04]} 42. Bf6 {[%emt 0:00:08]} Bg3 {[%emt 0:00:05]} 43. b3 {[%emt 0:00:08]} Re2 {[%emt 0:00:03]} 44. Rc3+ {[%emt 0:00:02]} Kd7 {[%emt 0:00:04]} 45. Rd3 {[%emt 0:00:04]} Ke6 {[%emt 0:00:02]} 46. Bb2 {[%emt 0:00:06]} Rxc2 {[%emt 0:00:13]} 0-1

[Event "European Online Club-ch-B 2021"]
[Site "Online"]
[Date "2021.03.27"]
[Round "1.11"]
[White "Riff, Jean-Noel"]
[Black "Rasti, Arvin"]
[Result "1-0"]
[ECO "B67"]
[WhiteElo "2499"]
[BlackElo "2195"]
[Annotator "ChessBase"]
[PlyCount "85"]
[EventDate "2021.03.27"]
[EventType "team-tourn"]
[EventCountry "NET"]
[SourceTitle "playchess.com"]
[Source "ChessBase"]
[SourceQuality "1"]
[TimeControl "900+5"]

1. e4 {[%emt 0:00:00]} c5 {[%emt 0:00:08]} 2. Nc3 {[%emt 0:00:05]} Nc6 {[%emt 0:00:04]} 3. Nf3 {[%emt 0:00:03]} d6 {[%emt 0:00:11]} 4. d4 {[%emt 0:00:12]} cxd4 {[%emt 0:00:02]} 5. Nxd4 {[%emt 0:00:02]} Nf6 {[%emt 0:00:10]} 6. Bg5 {[%emt 0:00:04]} e6 {[%emt 0:00:06]} 7. Qd2 {[%emt 0:00:03]} a6 {[%emt 0:00:02]} 8. O-O-O {[%emt 0:00:03]} Bd7 {[%emt 0:00:01]} 9. f4 {[%emt 0:00:16]} b5 {[%emt 0:00:05]} 10. Bxf6 {[%emt 0:00:02]} gxf6 {[%emt 0:00:02]} 11. Kb1 {[%emt 0:00:04]} Qb6 {[%emt 0:00:05]} 12. Nce2 {[%emt 0:00:03]} Rc8 {[%emt 0:00:38]} 13. f5 {[%emt 0:00:15]} Nxd4 {[%emt 0:00:42]} 14. Nxd4 {[%emt 0:00:02]} Qc5 {[%emt 0:00:29]} 15. Be2 {[%emt 0:00:37]} h5 {[%emt 0:00:27]} 16. Bf3 {[%emt 0:00:10]} Bh6 {[%emt 0:00:51]} 17. Qe2 {[%emt 0:00:06]} h4 {[%emt 0:00:48]} 18. g3 {[%emt 0:00:24]} Ke7 {[%emt 0:02:23]} 19. gxh4 {[%emt 0:00:32]} Rcg8 {[%emt 0:00:16]} 20. Bg4 {[%emt 0:00:06]} Bf4 {[%emt 0:02:14]} 21. h3 {[%emt 0:00:18]} Rxh4 {[%emt 0:01:03]} 22. Rhf1 {[%emt 0:00:13]} e5 {[%emt 0:00:54]} 23. Rd3 {[%emt 0:01:53]} b4 {[%emt 0:01:31]} 24. Nb3 {[%emt 0:00:21]} Qb6 {[%emt 0:00:35]} 25. Qe1 {[%emt 0:01:52]} Rhh8 {[%emt 0:00:59]} 26. Rff3 {[%emt 0:00:27]} Bb5 {[%emt 0:00:21]} 27. Rd1 {[%emt 0:00:19]} a5 {[%emt 0:00:05]} 28. c3 {[%emt 0:00:06]} a4 {[%emt 0:00:47]} 29. Na1 {[%emt 0:00:02]} a3 {[%emt 0:00:36]} 30. cxb4 {[%emt 0:00:12]} axb2 {[%emt 0:00:02]} 31. Kxb2 {[%emt 0:00:10]} Bc4 {[%emt 0:00:16]} 32. Nc2 {[%emt 0:00:07]} Qa6 {[%emt 0:00:22]} 33. a3 {[%emt 0:00:13]} Be2 {[%emt 0:00:12]} 34. Rc3 {[%emt 0:00:02]} Bxd1 {[%emt 0:00:03]} 35. Qxd1 {[%emt 0:00:07]} Rc8 {[%emt 0:00:08]} 36. Qd3 {[%emt 0:00:01]} Qxd3 {[%emt 0:00:03]} 37. Rxd3 {[%emt 0:00:01]} Rc4 {[%emt 0:00:04]} 38. b5 {[%emt 0:00:23]} Rb8 {[%emt 0:00:09]} 39. Rb3 {[%emt 0:00:01]} Rxe4 {[%emt 0:00:05]} 40. Nb4 {[%emt 0:00:02]} Kd7 {[%emt 0:00:13]} 41. a4 {[%emt 0:00:03]} Bd2 {[%emt 0:00:04]} 42. Nc6 {[%emt 0:00:19]} Ra8 {[%emt 0:00:08]} 43. Rd3 {[%emt 0:00:24]} 1-0

[Event "European Online Club-ch-B 2021"]
[Site "Online"]
[Date "2021.03.27"]
[Round "1.12"]
[White "Wengholm, Anders"]
[Black "Miralles, Gilles"]
[Result "0-1"]
[ECO "A30"]
[WhiteElo "2198"]
[BlackElo "2418"]
[Annotator "NA"]
[PlyCount "70"]
[EventDate "2021.03.27"]
[EventType "team-tourn"]
[EventCountry "NET"]
[SourceTitle "playchess.com"]
[Source "ChessBase"]
[SourceQuality "1"]
[TimeControl "900+5"]

1. Nf3 {[%emt 0:00:00]} Nf6 {[%emt 0:00:05]} 2. c4 {[%emt 0:00:03]} c5 {[%emt 0:00:09]} 3. Nc3 {[%emt 0:00:04]} e6 {[%emt 0:01:46]} 4. g3 {[%emt 0:00:07]} b6 {[%emt 0:00:03]} 5. Bg2 {[%emt 0:00:03]} Bb7 {[%emt 0:00:01]} 6. O-O {[%emt 0:00:02]} Be7 {[%emt 0:00:11]} 7. Re1 {[%emt 0:00:04]} d5 {[%emt 0:00:08]} 8. cxd5 {[%emt 0:00:06]} Nxd5 {[%emt 0:00:02]} 9. e4 {[%emt 0:02:26]} Nb4 {[%emt 0:00:03]} 10. d4 {[%emt 0:00:03]} cxd4 {[%emt 0:00:08]} 11. Nxd4 {[%emt 0:00:03]} N8c6 {[%emt 0:00:01]} 12. Be3 {[%emt 0:00:05]} O-O {[%emt 0:00:52]} 13. Rc1 {[%emt 0:00:39]} Ne5 {[%emt 0:00:17]} 14. Bf1 {[%emt 0:00:12]} Rc8 {[%emt 0:00:39]} 15. b3 {[%emt 0:00:29]} Bc5 {[%emt 0:00:30]} 16. Be2 {[%emt 0:00:39]} Nbd3 {[%emt 0:00:32]} 17. Bxd3 {[%emt 0:00:09]} Bxd4 {[%emt 0:00:02]} 18. Bxd4 {[%emt 0:00:07]} Qxd4 {[%emt 0:00:05]} 19. Be2 {[%emt 0:00:04]} Qb4 {[%emt 0:00:42]} 20. Qd2 {[%emt 0:00:07]} Rfd8 {[%emt 0:01:04]} 21. Qe3 {[%emt 0:00:02]} g6 {[%emt 0:02:03]} 22. Red1 {[%emt 0:01:17]} Rxd1+ {[%emt 0:00:18]} 23. Bxd1 {[%emt 0:00:03]} Qc5 {[%emt 0:00:42]} 24. Qxc5 {[%emt 0:01:10]} Rxc5 {[%emt 0:00:03]} 25. f3 {[%emt 0:00:08]} Nd3 {[%emt 0:00:21]} 26. Rc2 {[%emt 0:00:02]} Nb4 {[%emt 0:00:38]} 27. Rc1 {[%emt 0:00:04]} f5 {[%emt 0:00:09]} 28. exf5 {[%emt 0:00:09]} exf5 {[%emt 0:00:09]} 29. Be2 {[%emt 0:00:09]} Kg7 {[%emt 0:00:15]} 30. Kf2 {[%emt 0:00:14]} Nd5 {[%emt 0:00:09]} 31. Bc4 {[%emt 0:00:16]} Nxc3 {[%emt 0:00:20]} 32. Rxc3 {[%emt 0:00:02]} b5 {[%emt 0:00:01]} 33. Rd3 {[%emt 0:00:05]} bxc4 {[%emt 0:00:42]} 34. Rd7+ {[%emt 0:00:03]} Kh6 {[%emt 0:00:06]} 35. Rxb7 {[%emt 0:00:04]} c3 {[%emt 0:00:01]} 0-1